bitfinex-derivatives/quotes_SOLF0:USTF0_20250202
["timestamp","ask_amount","ask_price","bid_price","bid_amount"]
[1738525499850,369.49488152,205.25,204.94,41.61655863]
[1738525499851,19.97070459,205.17,204.94,41.61655863]
[1738525500048,19.97070459,205.17,205.07,41.61655863]
[1738525500447,15.17760459,205.17,205.15,4.8765]
[1738525500646,45.08193939,205.18,205.15,41.61655863]
[1738525500957,0.50877867,205.18,205.15,41.61655863]
[1738525501257,80.01545909,205.2,205.15,41.61655863]
[1738525501458,54.39015909,205.2,205.19,41.61655863]
[1738525501859,54.39015909,205.2,205.15,41.61655863]
[1738525502259,54.39015909,205.2,205.14,0.031901]
[1738525502453,54.42100748,205.2,205.14,0.031901]
[1738525502655,0.03084839,205.2,205.14,0.031901]
[1738525503351,0.03084839,205.2,205.0,41.61655863]
[1738525503856,41.61655863,205.18,205.0,41.61655863]
[1738525504052,41.61655863,205.18,204.96,41.61655863]
[1738525504757,0.03446474,205.09,205.05,0.03081359]
[1738525504958,4.8786,205.07,205.05,0.03081359]
[1738525505159,41.61655863,205.18,204.96,41.61655863]
[1738525505659,0.03103836,205.08,205.04,0.03528261]
[1738525505952,41.61655863,205.14,204.96,41.61655863]
[1738525506158,41.61655863,204.97,204.77,41.61655863]
[1738525506656,4.8836,204.86,204.73,164.70048365]
[1738525506855,0.03247795,204.89,204.85,0.03296289]
[1738525507052,41.61655863,204.89,204.73,123.08392502]
[1738525507256,41.61655863,204.81,204.73,123.08392502]
[1738525507455,41.61655863,204.81,204.6,41.61655863]
[1738525507652,4.887,204.72,204.59,78.40372974]
[1738525507954,41.61655863,204.73,204.59,73.51382974]
[1738525508161,0.03619956,204.73,204.66,41.61655863]
[1738525508359,41.61655863,204.9,204.71,41.61655863]
[1738525508750,41.61655863,204.9,204.72,4.8867]
[1738525508950,41.61655863,204.82,204.63,41.61655863]
[1738525509157,4.8866,204.74,204.6,4.8895]
[1738525509350,3.0818,204.81,204.6,41.61655863]
[1738525509755,0.03466416,204.69,204.65,0.03609587]
[1738525510158,41.61655863,204.73,204.52,41.61655863]
[1738525510453,0.03598794,204.69,204.65,0.03245358]
[1738525510659,41.61655863,204.73,204.56,41.61655863]
[1738525510861,41.61655863,204.73,204.52,41.61655863]
[1738525511158,0.03291567,204.69,204.65,0.03180748]
[1738525511358,41.61655863,204.69,204.49,41.61655863]
[1738525511559,8.9815,204.72,204.55,41.61655863]
[1738525512063,41.61655863,204.7,204.51,41.61655863]
[1738525512761,0.03222588,204.63,204.58,0.03425836]
[1738525514062,0.03222588,204.63,204.47,41.61655863]
[1738525514456,41.61655863,204.66,204.47,41.61655863]
[1738525514856,41.61655863,204.53,204.35,41.61655863]
[1738525515057,41.61655863,204.49,204.26,0.84419294]
[1738525515257,5.84,204.58,204.26,0.84419294]
[1738525515258,41.61655863,204.45,204.26,0.84419294]
[1738525515453,0.03695532,204.46,204.42,0.0374367]
[1738525515653,11.857,204.52,204.42,4.8938]
[1738525515863,11.857,204.52,204.31,41.61655863]
[1738525516057,41.61655863,204.45,204.26,0.84419294]
[1738525516364,41.61655863,204.41,204.24,73.51382974]
[1738525516564,41.61655863,204.33,204.08,0.0539]
[1738525516756,4.8959,204.35,204.24,4.8982]
[1738525516960,47.43655863,204.41,204.21,41.61655863]
[1738525517361,47.43655863,204.41,204.29,0.03735949]
[1738525517362,0.03545303,204.33,204.29,0.03735949]
[1738525518362,0.03545303,204.33,204.29,5.949e-05]
[1738525518564,0.03545303,204.33,204.15,41.61655863]
[1738525518764,24.92545303,204.33,204.15,41.61655863]
[1738525518972,24.89,204.33,204.2,4.8992]
[1738525519266,24.89,204.33,204.05,41.67045863]
[1738525519267,24.89,204.33,204.11,41.61655863]
[1738525519466,24.89,204.33,204.15,41.61655863]
[1738525519662,2.393e-05,204.24,204.2,0.03611047]
[1738525519857,8.444,204.33,204.23,41.61655863]
[1738525520058,12.1129,204.41,204.31,41.61655863]
[1738525520258,6.2704,204.48,204.35,41.61655863]
[1738525520661,41.61655863,204.45,204.23,41.61655863]
[1738525520860,41.61655863,204.41,204.19,41.61655863]
[1738525521068,0.03667195,204.36,204.32,0.03112508]
[1738525521268,41.61655863,204.33,204.2,0.97943192]
[1738525521662,61.18655863,204.33,204.2,0.97943192]
[1738525521859,4.8975,204.28,204.17,4.8999]
[1738525522067,41.61655863,204.29,204.05,41.73075863]
[1738525522465,0.03284243,204.19,204.15,0.03338325]
[1738525522966,41.61655863,204.17,204.03,4.9033]
[1738525523160,41.61655863,204.08,203.88,41.61655863]
[1738525523361,4.9028,204.06,203.95,4.9051]
[1738525523560,0.03412987,204.0,203.89,0.98092108]
[1738525523964,2.987e-05,204.0,203.98,4.93645634]
[1738525524164,2.987e-05,204.0,203.98,4.9044]
[1738525524566,2.987e-05,204.0,203.96,4.905]
[1738525524774,2.987e-05,204.0,203.61,41.61655863]
[1738525524969,41.61655863,203.98,203.83,0.98120983]
[1738525525272,41.65378194,203.94,203.89,0.03115945]
[1738525525665,0.03722331,203.94,203.89,0.03115945]
[1738525525871,6.3952,203.97,203.78,41.61655863]
[1738525526071,0.03470704,203.94,203.89,0.03425205]
[1738525526467,41.61655863,204.05,203.82,41.61655863]
[1738525526667,4.9036,204.03,203.82,41.61655863]
[1738525526874,0.0374087,203.94,203.89,4.94341472]
[1738525527067,0.0374087,203.94,203.89,0.03681472]
[1738525527272,41.61655863,203.95,203.72,42.23993574]
[1738525527473,9.36609965,203.94,203.89,0.03233263]
[1738525527874,8.9139,204.04,203.87,4.907]
[1738525528074,8.9139,204.04,203.81,41.61655863]
[1738525528275,0.03212584,203.94,203.89,0.03603999]
[1738525528468,2.584e-05,203.94,203.92,4.9059]
[1738525528671,8.9139,204.04,203.89,41.61655863]
[1738525528975,8.9139,204.04,203.93,4.9057]
[1738525529172,8.9139,204.04,203.89,41.61655863]
[1738525529875,0.03212522,203.99,203.94,0.03684445]
[1738525530177,0.03212522,203.99,203.97,4.9047]
[1738525530378,41.61655863,204.35,203.98,41.61655863]
[1738525530674,41.61655863,204.31,204.1,41.61655863]
[1738525530874,41.61655863,204.27,204.06,41.61655863]
[1738525531075,0.97914422,204.26,204.06,41.61655863]
[1738525531274,4.8993,204.2,204.09,4.9018]
[1738525531569,41.61655863,204.27,204.02,41.61655863]
[1738525531767,0.03150911,204.18,204.14,0.03107103]
[1738525532171,6.2004,204.19,204.02,41.61655863]
[1738525532568,0.03702417,204.18,204.14,0.03683887]
[1738525532776,6.2004,204.19,204.07,4.9022]
[1738525532973,6.2004,204.19,204.02,41.61655863]
[1738525533274,0.03679782,204.18,204.14,0.03660626]
[1738525533574,4.9001,204.17,204.02,46.52005863]
[1738525533775,6.2004,204.19,204.02,41.61655863]
[1738525533972,0.03159883,204.18,204.14,0.03382625]
[1738525534278,6.2004,204.19,204.06,41.61655863]
[1738525534474,0.03294873,204.18,204.14,0.03215784]
[1738525537578,3.0753,204.32,204.15,41.61655863]
[1738525537778,3.0753,204.32,204.14,0.03215784]
[1738525537981,4.05415669,204.32,204.11,41.61655863]
[1738525538578,4.899,204.22,204.09,4.9017]
[1738525538783,0.03694188,204.24,204.19,0.03150291]
[1738525539083,4.8992,204.21,204.1,4.9016]
[1738525539383,41.61655863,204.24,204.05,41.61655863]
[1738525539581,41.65126727,204.24,204.19,5.257e-05]
[1738525539783,4.9005,204.15,204.04,4.903]
[1738525539982,61.19655863,204.24,204.01,41.61655863]
[1738525540183,61.19655863,204.24,204.01,42.59690273]
[1738525540382,4.9008,204.14,204.04,4.9031]
[1738525540683,61.19655863,204.24,204.01,42.59690273]
[1738525540876,0.03632171,204.11,204.07,0.03361554]
[1738525541274,61.19655863,204.24,204.01,42.59690273]
[1738525541685,0.03531395,204.11,204.07,0.0336689]
[1738525542183,41.61655863,204.15,204.01,0.9803441]
[1738525542377,3.0875,204.14,204.01,0.9803441]
[1738525542574,0.03449213,204.11,204.07,4.93514444]
[1738525542773,0.03449213,204.11,204.07,0.03274444]
[1738525542984,9.213e-05,204.11,204.07,0.03274444]
[1738525543184,9.213e-05,204.11,204.09,46.51835863]
[1738525543376,9.213e-05,204.11,204.09,4.9018]
[1738525543579,9.213e-05,204.15,204.09,41.61655863]
[1738525543776,9.213e-05,204.15,204.1,41.61655863]
[1738525544176,9.213e-05,204.15,204.07,0.03274444]
[1738525544781,4.9013,204.12,204.07,0.03274444]
[1738525544980,0.03730718,204.13,204.07,0.03274444]
[1738525545681,3.94730718,204.13,204.07,0.03274444]
[1738525545881,3.94730718,204.13,204.08,4.9021]
[1738525546282,3.94730718,204.13,204.07,0.03274444]
[1738525546890,4.9015,204.11,204.07,0.03274444]
[1738525547090,3.94730718,204.13,204.07,0.03274444]
[1738525547684,7.60730718,204.13,204.07,0.03274444]
[1738525548192,7.18e-06,204.13,204.12,4.9012]
[1738525548892,19.58,204.24,204.09,41.61655863]
[1738525549092,0.0001,204.24,204.23,4.8986]
[1738525549288,3.91,204.32,204.23,41.61655863]
[1738525549487,3.91,204.32,204.19,41.61655863]
[1738525549685,0.03605175,204.26,204.21,0.03351728]
[1738525549892,5.175e-05,204.26,204.21,0.03351728]
[1738525550094,5.175e-05,204.26,204.24,4.8983]
[1738525550494,5.175e-05,204.26,204.21,0.03351728]
[1738525550692,5.175e-05,204.26,204.24,4.8983]
[1738525551093,3.91005175,204.26,204.24,4.8983]
[1738525551395,5.175e-05,204.26,204.24,4.8983]
[1738525551594,5.175e-05,204.26,204.22,4.8986]
[1738525551996,5.175e-05,204.26,204.21,0.03351728]
[1738525552296,5.175e-05,204.26,203.95,9.8808]
[1738525552297,41.61655863,204.23,204.04,41.61655863]
[1738525552498,4.9021,204.09,204.0,41.61655863]
[1738525552694,5.175e-05,204.26,204.08,41.61655863]
[1738525552893,5.175e-05,204.26,204.14,41.61655863]
[1738525553294,5.175e-05,204.26,204.05,115.13038837]
[1738525553596,0.03156463,204.22,204.18,0.03319861]
[1738525553799,4.93056463,204.22,204.18,0.03319861]
[1738525554002,5.175e-05,204.26,204.09,41.61655863]
[1738525554291,0.03510338,204.22,204.18,0.03513161]
[1738525554490,3.38e-06,204.22,204.21,41.61655863]
[1738525554692,5.175e-05,204.26,204.21,41.61655863]
[1738525554999,5.175e-05,204.26,204.24,4.8982]
[1738525555197,5.175e-05,204.26,204.17,41.61655863]
[1738525555390,5.175e-05,204.26,204.22,4.8988]
[1738525555589,5.175e-05,204.26,204.17,41.61655863]
[1738525555794,5.175e-05,204.26,204.24,4.8983]
[1738525555988,0.03648514,204.26,204.22,0.03365507]
[1738525556895,4.8784,204.24,204.22,0.03365507]
[1738525557096,41.61655863,204.21,204.08,73.51382974]
[1738525557890,4.8992,204.21,204.14,4.9006]
[1738525558090,5.175e-05,204.26,204.08,115.13038837]
[1738525558293,0.03509976,204.2,204.15,0.03733992]
[1738525558490,4.93439976,204.2,204.15,0.03733992]
[1738525558700,0.03509976,204.2,204.15,0.03733992]
[1738525560802,5.175e-05,204.26,204.16,41.61655863]
[1738525561102,5.175e-05,204.26,204.21,41.61655863]
[1738525561298,41.61661038,204.26,204.15,0.03733992]
[1738525561496,41.61655863,204.21,204.01,41.61655863]
[1738525561800,41.61655863,204.21,204.02,41.61655863]
[1738525561997,41.61655863,204.17,204.09,0.03608778]
[1738525562197,41.61655863,204.13,204.09,0.03608778]
[1738525562402,41.61655863,204.13,203.97,73.51382974]
[1738525562701,41.61655863,204.05,203.97,73.51382974]
[1738525562897,41.61655863,204.01,203.97,73.51382974]
[1738525563099,41.61655863,204.01,203.97,47.5957348]
[1738525563296,4.9048,203.97,203.96,118.27172502]
[1738525563601,19.6,203.99,203.97,0.03229607]
[1738525563796,9.81,204.28,203.98,41.61655863]
[1738525564002,41.61655863,204.2,203.98,41.61655863]
[1738525564301,41.61655863,204.04,203.96,118.27172502]
[1738525564508,41.61655863,204.08,203.96,118.27172502]
[1738525564697,41.61655863,204.16,203.96,118.27172502]
[1738525564999,58.01655863,204.16,204.0,0.03576676]
[1738525565401,41.61655863,204.12,203.97,3.1901]
[1738525565599,58.01655863,204.16,203.98,41.61655863]
[1738525565796,16.4,204.16,203.98,41.61655863]
[1738525566102,16.4,204.16,204.02,41.61655863]
[1738525566301,16.4,204.16,203.97,3.1901]
[1738525566302,0.03137042,204.09,204.05,0.03219223]
[1738525566706,41.61655863,204.34,204.07,41.61655863]
[1738525567007,6.76283845,204.32,204.17,41.61655863]
[1738525567303,5.175e-05,204.28,204.25,41.61655863]
[1738525567502,5.175e-05,204.28,204.21,41.61655863]
[1738525567802,14.43123284,204.33,204.25,41.61655863]
[1738525568003,7.72431113,204.34,204.25,41.61655863]
[1738525568202,71.33497388,204.35,204.32,4.8963]
[1738525568400,61.71747388,204.35,204.27,0.03372151]
[1738525568603,61.71747388,204.35,204.24,41.61655863]
[1738525568900,154.8663731,204.38,204.32,41.61655863]
[1738525569199,3.91,204.38,204.33,41.61655863]
[1738525569402,3.91,204.38,204.34,16.78308428]
[1738525569598,41.61655863,204.37,204.17,47.90555863]
[1738525569803,41.61655863,204.35,204.34,6.381e-05]
[1738525570001,41.61655863,204.35,204.13,41.61655863]
[1738525570300,41.61655863,204.37,204.17,41.61655863]
[1738525570803,6.12,204.4,204.21,41.61655863]
[1738525570997,4.8951,204.38,204.29,155.41802671]
[1738525571198,0.03279062,204.33,204.29,155.41802671]
[1738525571605,0.5,204.33,204.29,0.03738093]
[1738525571804,0.53309999,204.33,204.29,0.03738093]
[1738525573205,41.61655863,204.57,204.32,41.61655863]
[1738525573406,41.61655863,204.53,204.32,41.61655863]
[1738525573606,3.0427,204.52,204.36,41.61655863]
[1738525574106,96.98,204.63,204.44,41.61655863]
[1738525574304,41.61655863,204.6,204.42,0.03628142]
[1738525574503,41.61655863,204.68,204.47,41.61655863]
[1738525574907,41.61655863,204.68,204.49,0.03487993]
[1738525575107,41.61655863,204.68,204.47,41.61655863]
[1738525575303,2.9748,204.7,204.47,41.61655863]
[1738525575304,41.61655863,204.64,204.47,41.61655863]
[1738525575500,4.8904,204.57,204.56,0.03732523]
[1738525575702,41.61655863,204.6,204.36,41.61655863]
[1738525576009,41.61655863,204.52,204.3,6.3466]
[1738525576201,41.61655863,204.56,204.36,41.61655863]
[1738525576509,41.61655863,204.6,204.4,41.61655863]
[1738525576701,41.61655863,204.56,204.36,41.61655863]
[1738525577206,0.03313631,204.52,204.48,0.03271128]
[1738525577503,41.61655863,204.64,204.38,41.61655863]
[1738525577504,41.61655863,204.64,204.45,41.61655863]
[1738525577909,0.03163421,204.52,204.48,0.03651975]
[1738525578108,4.8886,204.65,204.54,4.8909]
[1738525578301,2.9748,204.7,204.54,4.8909]
[1738525578504,41.61655863,204.64,204.5,3.1149]
[1738525578709,0.0339925,204.62,204.5,3.1149]
[1738525578904,0.0339925,204.62,204.55,0.03330277]
[1738525579905,0.0339925,204.62,204.56,4.8905]
[1738525580111,0.0339925,204.62,204.55,0.03330277]
[1738525580503,41.61655863,204.86,204.61,41.61655863]
[1738525580707,41.61655863,204.86,204.66,41.61655863]
[1738525581110,12.4256,204.92,204.7,41.61655863]
[1738525581312,12.4256,204.92,204.72,4.8868]
[1738525581313,41.61655863,204.89,204.72,4.8868]
[1738525581511,41.61655863,204.89,204.7,41.61655863]
[1738525581706,4.8843,204.83,204.73,4.8865]
[1738525582012,41.61655863,204.89,204.78,0.03181366]
[1738525582408,12.4256,204.92,204.78,0.03181366]
[1738525582809,4.8818,204.94,204.78,41.61655863]
[1738525583208,4.8818,204.94,204.83,0.03190006]
[1738525583410,6.1187,205.01,204.83,0.03190006]
[1738525583816,6.0584,205.03,204.86,4.8834]
[1738525583817,4.8805,204.99,204.86,4.8834]
[1738525584017,41.61655863,205.1,204.91,41.61655863]
[1738525584220,41.61655863,205.14,204.95,41.61655863]
[1738525584515,41.61655863,205.14,204.97,4.8808]
[1738525584711,41.61655863,205.14,205.02,0.03504585]
[1738525584910,4.8777,205.11,205.02,0.03504585]
[1738525585116,41.61655863,205.18,205.02,0.03504585]
[1738525585317,41.61655863,205.14,204.95,41.61655863]
[1738525585612,5.96,205.24,205.08,2.481e-05]
[1738525585817,0.89427401,205.23,204.91,5.9601]
[1738525586014,5.96,205.24,204.91,5.9601]
[1738525586210,12.3535,205.25,204.91,5.9601]
[1738525586717,12.3535,205.25,204.92,0.97599063]
[1738525586914,0.03436778,205.1,205.06,0.03156641]
[1738525587311,12.3535,205.25,205.05,41.61655863]
[1738525587710,0.03587208,205.1,205.06,0.03359761]
[1738525587911,41.61655863,205.16,204.97,41.61655863]
[1738525588110,41.61655863,205.12,204.93,41.61655863]
[1738525588320,0.03427493,205.1,204.89,41.61655863]
[1738525588616,41.61655863,205.12,204.89,41.61655863]
[1738525588617,41.61655863,205.12,204.9,4.8824]
[1738525588821,41.61655863,205.08,204.89,41.61655863]
[1738525589018,41.61655863,205.04,204.85,41.61655863]
[1738525589417,41.61655863,205.0,204.81,44.80565863]
[1738525589621,6.1394,205.07,204.81,44.80565863]
[1738525589622,0.03133472,204.97,204.81,44.80565863]
[1738525589816,0.03133472,204.97,204.85,41.61655863]
[1738525590020,102.62,205.14,204.81,3.1891]
[1738525590021,41.61655863,205.51,204.97,29.39]
[1738525590220,6.0125,205.51,205.32,41.61655863]
[1738525590518,4.8705,205.41,205.26,41.61655863]
[1738525590723,47.62905863,205.51,205.39,0.03086087]
[1738525591019,0.03393626,205.44,205.38,41.61655863]
[1738525591420,6.0125,205.51,205.43,0.0368391]
[1738525592219,0.0359353,205.49,205.43,0.0368391]
[1738525593616,0.0359353,205.49,205.43,4.9066391]
[1738525593813,0.0359353,205.49,205.43,0.0368391]
[1738525594923,0.0359353,205.49,205.46,41.61655863]
[1738525595120,6.0957,205.62,205.46,41.61655863]
[1738525595418,41.61655863,205.65,205.43,41.65339773]
[1738525595623,44.51225863,205.61,205.43,41.61655863]
[1738525595822,44.51225863,205.61,205.35,41.61655863]
[1738525595823,41.61655863,205.57,205.35,41.61655863]
[1738525596124,41.61655863,205.59,205.39,41.61655863]
[1738525596523,0.03407973,205.48,205.44,0.03216336]
[1738525596923,41.61655863,205.59,205.39,41.61655863]
[1738525597320,0.03407973,205.48,205.44,0.03650797]
[1738525597724,2.8957,205.61,205.43,41.61655863]
[1738525598222,0.03209119,205.48,205.44,0.03308218]
[1738525598424,2.8957,205.61,205.43,41.61655863]
[1738525598623,0.03407973,205.48,205.44,0.03173146]
[1738525599024,41.61655863,205.55,205.35,41.61655863]
[1738525599423,41.61655863,205.55,205.15,47.75655863]
[1738525599424,0.03407973,205.48,205.31,41.61655863]
[1738525599819,3.1223,205.5,205.31,41.61655863]
[1738525600022,3.1223,205.5,205.35,41.61655863]
[1738525600423,3.1223,205.5,205.4,41.61655863]
[1738525600726,0.03274984,205.45,205.4,41.64971721]
[1738525600921,0.03274984,205.45,205.4,0.03315858]
[1738525601126,0.03274984,205.45,205.4,41.64971721]
[1738525601927,96.48,205.59,205.4,41.64971721]
[1738525602117,41.61655863,205.55,205.4,0.03315858]
[1738525602324,41.61655863,205.55,205.37,41.61655863]
[1738525602725,41.61655863,205.55,205.37,46.48785863]
[1738525602929,41.61655863,205.55,205.37,41.61655863]
[1738525603128,0.03111298,205.48,205.44,0.03612377]
[1738525603628,0.03111298,205.48,205.47,41.61655863]
[1738525604329,2.8957,205.61,205.47,41.61655863]
[1738525604530,2.8957,205.61,205.51,41.61655863]
[1738525605129,41.61655863,205.71,205.51,41.61655863]
[1738525605327,4.8645,205.66,205.55,41.61655863]
[1738525605527,3.0566,205.7,205.54,0.03494607]
[1738525605723,3.0566,205.7,205.51,41.61655863]
[1738525605927,3.0566,205.7,205.55,41.61655863]
[1738525606128,7.9203,205.7,205.6,0.0324286]
[1738525606331,3.0566,205.7,205.6,0.0324286]
[1738525607133,41.61655863,205.85,205.67,41.61655863]
[1738525607431,321.34,206.52,205.7,41.61655863]
[1738525607629,0.97077953,206.02,205.85,41.61655863]
[1738525607830,41.61655863,205.99,205.77,41.61655863]
[1738525608024,4.86,205.85,205.84,0.03708638]
[1738525608228,0.97096805,205.98,205.84,0.03708638]
[1738525608434,0.97096805,205.98,205.74,41.61655863]
[1738525608633,0.97096805,205.98,205.78,41.61655863]
[1738525608833,0.97096805,205.98,205.89,0.03397563]
[1738525609034,15.3198,206.01,205.89,0.03397563]
[1738525609233,9.1998,206.01,205.89,0.03397563]
[1738525610639,4.39994343,205.94,205.89,0.03397563]
[1738525610833,9.1998,206.01,205.89,0.03397563]
[1738525611034,4.8588,205.91,205.89,0.03397563]
[1738525611243,41.61655863,205.99,205.78,41.61655863]
[1738525611635,41.61655863,205.95,205.74,41.61655863]
[1738525611838,41.61655863,205.87,205.66,41.61655863]
[1738525612035,3.0648,205.86,205.66,42.58903747]
[1738525612439,3.0648,205.86,205.74,0.03604935]
[1738525612440,0.03509774,205.78,205.74,0.03604935]
[1738525612635,0.03509774,205.78,205.66,0.97247884]
[1738525612837,0.03509774,205.78,205.62,41.61655863]
[1738525613243,4.862,205.77,205.62,41.61655863]
[1738525613542,41.61655863,205.83,205.62,41.61655863]
[1738525613841,4.8634,205.71,205.67,0.03411539]
[1738525614138,0.03069446,205.72,205.67,41.65067402]
[1738525614336,6.1825,205.85,205.67,41.61655863]
[1738525614741,0.0349673,205.72,205.71,41.61655863]
[1738525614941,6.1825,205.85,205.71,41.61655863]
[1738525615145,6.1825,205.85,205.59,41.61655863]
[1738525615146,6.1825,205.85,205.75,41.61655863]
[1738525615341,11.0427,205.85,205.75,41.61655863]
[1738525615542,6.1825,205.85,205.75,41.61655863]
[1738525615842,6.1825,205.85,205.7,41.61655863]
[1738525616138,4.8594,205.88,205.73,4.8628]
[1738525616344,0.03150424,205.82,205.78,0.03438041]
[1738525616841,8.9152,205.94,205.74,41.61655863]
[1738525617249,0.03624894,205.82,205.78,0.03429258]
[1738525617747,8.9152,205.94,205.74,41.61655863]
[1738525617940,41.61655863,205.86,205.66,41.61655863]
[1738525618140,41.61655863,205.78,205.58,41.61655863]
[1738525618347,4.8648,205.65,205.56,4.8667]
[1738525618547,41.61655863,205.74,205.54,41.61655863]
[1738525618750,41.57998361,205.74,205.54,41.61655863]
[1738525619348,4.8641,205.68,205.55,4.867]
[1738525619545,0.03668222,205.66,205.62,0.03669269]
[1738525620542,41.61655863,205.7,205.38,88.56611484]
[1738525620747,41.61655863,205.64,205.44,41.61655863]
[1738525621052,2.9119,205.63,205.44,41.61655863]
[1738525621649,4.8666,205.58,205.5,4.8682]
[1738525622145,4.8666,205.58,205.51,0.03291937]
[1738525622146,0.03388788,205.56,205.51,0.03291937]
[1738525622645,2.9119,205.63,205.51,0.03291937]
[1738525622845,2.9119,205.63,205.52,41.61655863]
[1738525623152,47.53655863,205.74,205.56,41.61655863]
[1738525623351,41.61655863,205.7,205.48,41.61655863]
[1738525623549,3.1706,205.73,205.52,41.61655863]
[1738525623846,9.749e-05,205.61,205.59,4.8661]
[1738525624145,9.749e-05,205.61,205.48,41.61655863]
[1738525624352,41.61655863,205.66,205.48,41.61655863]
[1738525624752,41.61655863,205.7,205.48,41.61655863]
[1738525624952,41.61655863,205.66,205.48,41.61655863]
[1738525625251,41.61655863,205.66,205.57,0.03593399]
[1738525625452,4.8665,205.58,205.5,4.8683]
[1738525625851,4.8665,205.58,205.48,41.61655863]
[1738525626351,41.61655863,205.7,205.48,41.61655863]
[1738525626553,3.1706,205.73,205.52,41.61655863]
[1738525626850,3.1706,205.73,205.56,41.61655863]
[1738525627050,0.03677121,205.65,205.56,41.61655863]
[1738525627350,0.03677121,205.65,205.62,0.03629753]
[1738525627556,41.61655863,205.82,205.62,0.03629753]
[1738525627747,4.8607,205.83,205.74,4.8626]
[1738525628053,6.0299,206.0,205.53,96.3]
[1738525628054,41.61655863,205.82,205.63,41.61655863]
[1738525628349,41.61655863,205.82,205.53,96.3]
[1738525628350,3.1164,205.81,205.59,41.61655863]
[1738525628553,4.8636,205.7,205.59,41.61655863]
[1738525628754,41.61655863,205.74,205.55,41.61655863]
[1738525628955,41.61655863,205.74,205.68,0.03106591]
[1738525629150,4.8644,205.67,205.58,4.8662]
[1738525629352,4.8644,205.67,205.55,41.61655863]
[1738525629353,41.61655863,205.74,205.55,41.61655863]
[1738525629555,41.61655863,205.74,205.55,116.14881272]
[1738525629753,36.70948129,205.74,205.55,116.14881272]
[1738525629956,41.61655863,205.7,205.55,74.53225409]
[1738525630154,3.0575,205.69,205.55,74.53225409]
[1738525630451,0.03624593,205.65,205.49,74.53225409]
[1738525630853,6.0294,205.65,205.49,74.53225409]
[1738525631253,41.61655863,205.63,205.49,74.53225409]
[1738525631450,41.61655863,205.5,205.47,93.36642339]
[1738525631653,41.61655863,205.5,205.47,67.49342339]
[1738525631858,41.61655863,205.5,205.45,155.41802671]
[1738525632062,47.53655863,205.54,205.45,155.41802671]
[1738525632259,47.53655863,205.54,205.46,0.0363933]
[1738525632454,4.89930968,205.52,205.46,0.0363933]
[1738525632661,0.03140968,205.52,205.46,0.0363933]
[1738525633558,3.0575,205.69,205.49,41.61655863]
[1738525633759,0.97238428,205.68,205.64,4.8648]
[1738525634062,41.61655863,205.85,205.66,41.61655863]
[1738525634358,4.8613,205.8,205.66,4.8644]
[1738525634560,41.61655863,205.77,205.63,6.1465]
[1738525634759,0.03243229,205.75,205.71,0.03475428]
[1738525635363,6.68864001,205.75,205.71,0.03475428]
[1738525636157,19.96862318,205.76,205.71,0.03475428]
[1738525636750,0.81902318,205.76,205.74,4.8625]
[1738525636951,53.24966182,205.77,205.74,46.47905863]
[1738525637254,18.83236182,205.77,205.74,41.61655863]
[1738525637460,4.8577,205.96,205.74,41.61655863]
[1738525637662,137.77717926,205.82,205.81,41.61655863]
[1738525638054,130.46387926,205.82,205.81,46.47755863]
[1738525638260,130.46387926,205.82,205.81,41.61655863]
[1738525638562,130.46387926,205.82,205.79,0.03732955]
[1738525639163,5.9681,205.97,205.63,12.0065]
[1738525639462,47.58465863,205.97,205.77,41.61655863]
[1738525639661,47.58465863,205.97,205.8,21.44680448]
[1738525640161,41.61655863,205.89,205.8,21.44680448]
[1738525640362,4.8597,205.87,205.8,21.44680448]
[1738525640657,4.8597,205.87,205.86,8.929e-05]
[1738525640863,4.8591,205.9,205.8,21.44680448]
[1738525641058,41.61655863,205.93,205.8,21.44680448]
[1738525641362,5.9681,205.97,205.8,21.44680448]
[1738525641562,5.9681,205.97,205.78,41.61655863]
[1738525641762,4.8588,205.91,205.8,4.8612]
[1738525642058,0.03704304,205.9,205.85,0.034076]
[1738525642262,4.8618,205.78,205.7,72.10122084]
[1738525642463,41.61655863,205.89,205.7,72.10122084]
[1738525642763,4.8613,205.8,205.7,76.96472084]
[1738525642965,41.61655863,205.89,205.7,72.10122084]
[1738525643460,0.03162773,205.82,205.77,0.03342189]
[1738525644658,0.03162773,205.82,205.64,72.10122084]
[1738525644862,41.61655863,205.81,205.64,72.10122084]
[1738525645169,41.61655863,205.77,205.64,72.10122084]
[1738525645770,5.875,205.8,205.64,72.10122084]
[1738525645961,0.03347606,205.73,205.68,0.0329752]
[1738525647059,0.03347606,205.73,205.68,4.8968752]
[1738525647265,0.03347606,205.73,205.68,0.0329752]
[1738525647767,4.8638,205.7,205.68,0.0329752]
[1738525647961,0.03347606,205.73,205.68,0.0329752]
[1738525648161,0.03347606,205.73,205.7,4.8635]
[1738525648361,0.03347606,205.73,205.68,0.0329752]
[1738525649163,4.859,205.9,205.8,4.8611]